[Event "WYCC 2018 G16"]
[Site "Halkidiki"]
[Date "2018.10.20"]
[Round "1"]
[White "Akti, Ezgi"]
[Black "Sankova, Stella"]
[Result "1/2-1/2"]
[ECO "B50"]
[WhiteElo "1643"]
[BlackElo "2051"]
[Annotator "NA"]
[PlyCount "94"]
[EventDate "2018.10.20"]
[EventType "swiss"]
[EventCountry "GRE"]
[SourceTitle "playchess.com"]
[Source "ChessBase"]
[SourceQuality "1"]
[TimeControl "40/5400+30:1800+30"]

1. e4 {[%emt 0:00:00]} c5 {[%emt 0:00:00]} 2. Nf3 {[%emt 0:00:00]} d6 {[%emt 0:00:00]} 3. c3 {[%emt 0:00:03]} Nf6 {[%emt 0:00:00]} 4. Bd3 {[%emt 0:00:08]} Nc6 {[%emt 0:00:06]} 5. Bc2 {[%emt 0:00:37]} Bg4 {[%emt 0:00:20]} 6. d3 {[%emt 0:00:56]} e6 {[%emt 0:00:13]} 7. Nbd2 {[%emt 0:00:16]} Be7 {[%emt 0:02:17]} 8. h3 {[%emt 0:01:45]} Bh5 {[%emt 0:00:16]} 9. Nf1 {[%emt 0:03:05]} d5 {[%emt 0:01:30]} 10. Qe2 {[%emt 0:06:23]} Qc7 {[%emt 0:02:58] B50: Sicilian: 2...d6, Miscellaneous} 11. Ng3 {[%emt 0:01:55]} Bg6 {[%emt 0:00:15]} 12. Nh4 $146 {[%emt 0:13:33]} ({Predecessor:} 12. O-O dxe4 13. dxe4 O-O 14. Nh4 Nd7 15. Nxg6 hxg6 16. f4 Rab8 17. e5 b5 18. Qg4 {½-½ (30) Kobalia,M (2651)-Najer,E (2633) Khanty-Mansiysk 2013}) 12... dxe4 {[%emt 0:33:44]} 13. dxe4 {[%emt 0:12:45]} Nxe4 {[%emt 0:02:46]} 14. Nxe4 {[%emt 0:01:18]} Bxh4 {[%emt 0:00:09]} 15. Nxc5 {[%emt 0:06:34]} Bxc2 {[%emt 0:01:04]} 16. Qxc2 {[%emt 0:00:31]} O-O {[%emt 0:02:31]} 17. O-O {[%emt 0:01:03]} Ne5 {[%emt 0:05:29]} 18. Nb3 {[%emt 0:06:29]} Rfd8 {[%emt 0:01:58]} 19. Qe4 {[%emt 0:02:11]} Bf6 {[%emt 0:04:47]} 20. Bf4 {[%emt 0:22:15]} Qc4 {[%emt 0:02:55]} 21. Rfe1 {[%emt 0:01:14]} Qxe4 {[%emt 0:01:27]} 22. Rxe4 {[%emt 0:00:03]} Nd3 {[%emt 0:00:43]} 23. Rb1 {[%emt 0:01:31]} Rd5 {[%emt 0:05:48]} 24. Be3 {[%emt 0:05:10]} Rad8 {[%emt 0:03:31]} 25. Nd2 {[%emt 0:07:57]} Ra5 {[%emt 0:09:35]} 26. a4 {[%emt 0:00:35]} b5 {[%emt 0:02:56]} 27. axb5 {[%emt 0:04:05]} Rxb5 {[%emt 0:00:12]} 28. Nc4 {[%emt 0:01:00]} a6 {[%emt 0:06:10]} 29. Bd4 {[%emt 0:00:29]} Bxd4 {[%emt 0:07:06]} 30. Rxd4 {[%emt 0:00:08]} Rxd4 {[%emt 0:00:25]} 31. cxd4 {[%emt 0:00:02]} Rb4 {[%emt 0:01:51]} 32. b3 {[%emt 0:00:31]} Kf8 {[%emt 0:00:33]} 33. Kf1 {[%emt 0:00:22]} Nf4 {[%emt 0:00:21]} 34. h4 {[%emt 0:00:55]} Ke7 {[%emt 0:00:45]} 35. g3 {[%emt 0:00:39]} Nd5 {[%emt 0:00:12]} 36. Ke1 {[%emt 0:00:57]} Kf6 {[%emt 0:00:43]} 37. Kd2 {[%emt 0:00:24]} a5 {[%emt 0:01:40]} 38. Nxa5 {[%emt 0:00:32]} Rxd4+ {[%emt 0:00:04]} 39. Ke1 {[%emt 0:00:36]} Kf5 {[%emt 0:01:05]} 40. Nc6 {[%emt 0:00:00]} Re4+ {[%emt 0:00:00]} 41. Kf1 {[%emt 0:03:56]} f6 {[%emt 0:09:52]} 42. b4 {[%emt 0:02:28]} Rc4 {[%emt 0:00:53]} 43. b5 {[%emt 0:00:05]} Nb6 {[%emt 0:03:20]} 44. Ke2 {[%emt 0:05:52]} Ke4 {[%emt 0:02:00]} 45. f3+ $11 {[%emt 0:00:47]} Kd5 {[%emt 0:00:16]} 46. Kd3 {[%emt 0:00:53]} Ra4 {[%emt 0:01:33]} 47. Rb3 {[%emt 0:04:30]} Kc5 {[%emt 0:01:54] Ke4} 1/2-1/2

[Event "WYCC 2018 G16"]
[Site "Halkidiki"]
[Date "2018.10.20"]
[Round "1"]
[White "De Freitas, Isabella Ribeiro Co"]
[Black "Cramling Bellon, Anna"]
[Result "1-0"]
[ECO "A30"]
[WhiteElo "1605"]
[BlackElo "2025"]
[Annotator "NA"]
[PlyCount "99"]
[EventDate "2018.10.20"]
[EventType "swiss"]
[EventCountry "GRE"]
[SourceTitle "playchess.com"]
[Source "ChessBase"]
[SourceQuality "1"]
[TimeControl "40/5400+30:1800+30"]

1. c4 {[%emt 0:00:00]} c5 {[%emt 0:00:00]} 2. Nf3 {[%emt 0:00:05]} Nc6 {[%emt 0:00:00]} 3. g3 {[%emt 0:00:28]} e5 {[%emt 0:01:16]} 4. Nc3 {[%emt 0:01:14]} g6 {[%emt 0:00:21]} 5. Bg2 {[%emt 0:01:28]} Bg7 {[%emt 0:00:04]} 6. O-O {[%emt 0:02:36]} Nge7 {[%emt 0:00:04]} 7. d3 {[%emt 0:05:26]} d6 {[%emt 0:06:30]} 8. Ng5 {[%emt 0:10:53] A37: Symmetrical English vs ...g6: 4 Bg2 Bg7 5 Nf3} (8. a3 O-O 9. Rb1 a5 10. Bd2 h6 11. Ne1 Be6 12. Nc2 d5 13. cxd5 Nxd5 14. Ne3 Nb6 15. Ne4 Qe7 16. Qc1 Nd7 17. Nc3 Kh7 18. Ned5 Qd8 19. e3 Rc8 20. Qc2 {1-0 (57) Mchedlishvili,M (2604)-Parligras,M (2616) Heraklio 2017}) 8... h6 {[%emt 0:02:45]} 9. Nge4 {[%emt 0:02:18]} f5 {[%emt 0:00:27]} 10. Nd2 {[%emt 0:00:09]} O-O {[%emt 0:07:42]} 11. a3 {[%emt 0:09:43]} a5 {[%emt 0:22:18]} 12. Rb1 {[%emt 0:12:23]} Rb8 {[%emt 0:04:38]} 13. Nb3 $146 {[%emt 0:04:16]} ({Predecessor:} 13. Nf3 Be6 14. Nh4 g5 15. Nf3 f4 {0-1 (42) Torregrossa,R-Zingheim,S Chicago 1990}) 13... Be6 {[%emt 0:03:52]} 14. Nd5 {[%emt 0:03:44]} b5 {[%emt 0:05:43]} 15. Bd2 {[%emt 0:07:52]} a4 {[%emt 0:06:07]} 16. Nxe7+ {[%emt 0:06:34]} Nxe7 {[%emt 0:00:02]} 17. Na5 {[%emt 0:00:36]} Qd7 {[%emt 0:25:55]} 18. Qc1 {[%emt 0:04:37]} b4 {[%emt 0:04:07]} 19. axb4 {[%emt 0:07:34]} cxb4 {[%emt 0:00:01]} 20. Qe1 {[%emt 0:03:21]} b3 {[%emt 0:00:04]} 21. Qc1 {[%emt 0:01:10]} Rfc8 {[%emt 0:04:16]} 22. Ra1 {[%emt 0:07:04]} Kh7 {[%emt 0:00:07]} 23. Ra3 {[%emt 0:00:11]} d5 {[%emt 0:01:20]} 24. Bc3 {[%emt 0:05:00]} dxc4 {[%emt 0:01:55]} 25. Rd1 {[%emt 0:00:19]} Qb5 {[%emt 0:02:16]} 26. dxc4 {[%emt 0:00:20]} Bxc4 {[%emt 0:00:03]} 27. Nxc4 {[%emt 0:00:53]} Rxc4 {[%emt 0:00:46]} 28. e3 {[%emt 0:00:51]} e4 {[%emt 0:00:13]} 29. Bf1 {[%emt 0:00:05]} Bxc3 {[%emt 0:01:03]} 30. Bxc4 {[%emt 0:01:33]} Bxb2 {[%emt 0:00:15]} 31. Qxb2 {[%emt 0:00:04]} Qxc4 {[%emt 0:00:07]} 32. Rd7 {[%emt 0:00:54]} Qe6 {[%emt 0:00:16]} 33. Ra7 {[%emt 0:00:23]} Rd8 {[%emt 0:01:13]} 34. R3xa4 {[%emt 0:00:22]} Rd1+ {[%emt 0:00:27]} 35. Kg2 {[%emt 0:00:04]} f4 {[%emt 0:00:29]} 36. exf4 {[%emt 0:00:34]} e3 {[%emt 0:00:30]} 37. Qe2 {[%emt 0:02:41]} Qc6+ {[%emt 0:00:34]} 38. Kh3 {[%emt 0:00:41]} Rd7 {[%emt 0:00:42]} 39. R4a6 {[%emt 0:00:23]} Qc8 {[%emt 0:00:11]} 40. Kg2 {[%emt 0:00:00]} exf2 {[%emt 0:00:00]} 41. Qxf2 {[%emt 0:04:33]} Rb7 {[%emt 0:06:18]} 42. Qf3 {[%emt 0:05:49]} Qc2+ {[%emt 0:07:33]} 43. Kh3 {[%emt 0:03:44]} Qc8+ {[%emt 0:01:31]} 44. f5 {[%emt 0:02:16]} Rc7 $18 {[%emt 0:15:19]} 45. Rxc7 {[%emt 0:02:30]} Qxc7 {[%emt 0:00:01]} 46. fxg6+ {[%emt 0:00:46]} Nxg6 {[%emt 0:00:16]} 47. Qf5 {[%emt 0:00:50]} Qg7 {[%emt 0:00:38]} 48. Rd6 {[%emt 0:00:52]} Qg8 {[%emt 0:03:05]} 49. Rd7+ {[%emt 0:00:19]} Kh8 {[%emt 0:00:04]} 50. Qf6+ {[%emt 0:00:08]} 1-0

[Event "WYCC 2018 G16"]
[Site "Halkidiki"]
[Date "2018.10.20"]
[Round "1"]
[White "Servin-Demarrais, Helena"]
[Black "Miroshnik, Ekaterina"]
[Result "0-1"]
[ECO "C11"]
[WhiteElo "1540"]
[BlackElo "2023"]
[Annotator "NA"]
[PlyCount "128"]
[EventDate "2018.10.20"]
[EventType "swiss"]
[EventCountry "GRE"]
[SourceTitle "playchess.com"]
[Source "ChessBase"]
[SourceQuality "1"]
[TimeControl "40/5400+30:1800+30"]

1. e4 {[%emt 0:00:00]} e6 {[%emt 0:00:00]} 2. d4 {[%emt 0:00:00]} d5 {[%emt 0:00:00]} 3. Nc3 {[%emt 0:00:00]} Nf6 {[%emt 0:00:00]} 4. e5 {[%emt 0:00:00]} Nfd7 {[%emt 0:00:00]} 5. f4 {[%emt 0:00:00]} c5 {[%emt 0:00:00]} 6. Nf3 {[%emt 0:00:08]} Nc6 {[%emt 0:00:00]} 7. Be3 {[%emt 0:00:20]} Be7 {[%emt 0:00:51]} 8. Qd2 {[%emt 0:00:12]} a6 {[%emt 0:01:30]} 9. Be2 {[%emt 0:01:30]} O-O {[%emt 0:01:35] C11: French: Classical System: 4 e5 and 4 Bg5 dxe4} (9... b5 10. Nd1 b4 11. O-O a5 12. c3 Qb6 13. Bf2 Ba6 14. Bxa6 Qxa6 15. f5 a4 16. Ng5 h6 17. fxe6 Bxg5 18. exd7+ Kxd7 {1-0 (33) Andriasian,Z (2603)-Meier,G (2639) chess.com INT 2018}) 10. O-O {[%emt 0:00:14]} b5 {[%emt 0:05:12]} 11. Nd1 {[%emt 0:01:07]} cxd4 {[%emt 0:01:11]} 12. Nxd4 {[%emt 0:01:05]} Nxd4 {[%emt 0:12:43]} 13. Bxd4 {[%emt 0:00:35]} Bc5 {[%emt 0:03:01]} 14. c3 {[%emt 0:03:49]} Qb6 {[%emt 0:03:02]} 15. Bxc5 $146 {[%emt 0:08:29]} ({Predecessor:} 15. Kh1 a5 16. a3 Bb7 17. Ne3 f6 18. Nc2 Bxd4 19. cxd4 Rac8 20. Ne3 fxe5 {½-½ (20) Rosenberger,F (2128)-Grill,B (2221) Schwaebisch Gmuend 2014}) 15... Qxc5+ {[%emt 0:00:12]} 16. Qd4 {[%emt 0:02:01]} Bb7 {[%emt 0:04:08]} 17. Ne3 {[%emt 0:08:17]} Qc7 {[%emt 0:05:58]} 18. b3 {[%emt 0:06:19]} f6 {[%emt 0:13:24]} 19. exf6 {[%emt 0:02:44]} Nxf6 {[%emt 0:02:33]} 20. c4 {[%emt 0:03:27]} bxc4 {[%emt 0:09:47]} 21. bxc4 {[%emt 0:00:50]} Rfe8 {[%emt 0:00:45]} 22. cxd5 $11 {[%emt 0:02:26]} exd5 {[%emt 0:02:20]} 23. Bf3 {[%emt 0:03:54]} Rad8 {[%emt 0:00:42]} 24. Rac1 {[%emt 0:07:11]} Qd7 {[%emt 0:05:13]} 25. Rc5 {[%emt 0:06:25]} Ne4 {[%emt 0:04:28]} 26. Bxe4 {[%emt 0:05:38]} Rxe4 {[%emt 0:01:46]} 27. Qd3 {[%emt 0:05:00]} Qd6 {[%emt 0:07:47]} 28. Ra5 {[%emt 0:13:59]} Rxf4 {[%emt 0:05:09]} 29. Ra3 {[%emt 0:08:48]} Rxf1+ {[%emt 0:00:29]} 30. Nxf1 {[%emt 0:00:45]} d4 {[%emt 0:01:01]} 31. Nd2 {[%emt 0:03:36]} Qf4 {[%emt 0:04:11]} 32. Rb3 {[%emt 0:03:53]} Bd5 {[%emt 0:02:10]} 33. Rb2 {[%emt 0:01:15]} Re8 {[%emt 0:01:33]} 34. g3 {[%emt 0:01:46]} Qe3+ {[%emt 0:00:53]} 35. Qxe3 {[%emt 0:00:18]} dxe3 {[%emt 0:00:03]} 36. Kf1 {[%emt 0:00:52]} exd2 {[%emt 0:00:24]} 37. Rxd2 {[%emt 0:00:03]} Bc4+ {[%emt 0:00:05]} 38. Kg2 {[%emt 0:00:29]} Re2+ {[%emt 0:00:04]} 39. Rxe2 {[%emt 0:00:08]} Bxe2 {[%emt 0:00:01]} 40. Kf2 {[%emt 0:00:00]} Bc4 {[%emt 0:00:00]} 41. a3 {[%emt 0:00:14]} Kf7 {[%emt 0:00:08]} 42. Ke3 {[%emt 0:00:07]} Ke6 {[%emt 0:00:04]} 43. Kd4 {[%emt 0:00:58]} Bb5 {[%emt 0:00:05]} 44. Ke4 {[%emt 0:01:10]} g5 {[%emt 0:00:10]} 45. h4 g4 {[%emt 0:00:05]} 46. Kf4 {[%emt 0:01:34]} h5 {[%emt 0:00:04]} 47. Ke4 {[%emt 0:00:54]} Bc6+ {[%emt 0:00:04]} 48. Kd4 {[%emt 0:00:23]} Kf5 {[%emt 0:00:04]} 49. Kc5 {[%emt 0:00:49]} Bb5 {[%emt 0:00:05]} 50. Kd5 {[%emt 0:00:15]} Bf1 {[%emt 0:00:15]} 51. Kd4 {[%emt 0:01:16]} Bg2 {[%emt 0:00:06]} 52. Ke3 {[%emt 0:01:48]} Ke5 {[%emt 0:00:04]} 53. Kd3 {[%emt 0:00:38]} Bf1+ {[%emt 0:00:04]} 54. Ke3 {[%emt 0:00:22]} Bb5 {[%emt 0:00:06]} 55. Kf2 {[%emt 0:01:20]} Ke4 {[%emt 0:00:03]} 56. Kg2 {[%emt 0:00:27]} Ke3 {[%emt 0:00:04]} 57. Kg1 {[%emt 0:00:30]} Kf3 {[%emt 0:00:05]} 58. Kh2 {[%emt 0:00:10]} Kf2 {[%emt 0:00:03]} 59. Kh1 {[%emt 0:00:39]} Kxg3 {[%emt 0:00:05]} 60. Kg1 {[%emt 0:00:16]} Kxh4 {[%emt 0:00:05]} 61. Kg2 {[%emt 0:00:10]} Bc6+ {[%emt 0:00:05]} 62. Kh2 {[%emt 0:00:10]} g3+ {[%emt 0:00:03]} 63. Kg1 {[%emt 0:00:17]} Kh3 {[%emt 0:00:04]} 64. Kf1 {[%emt 0:00:42]} Kh2 0-1

[Event "WYCC 2018 G16"]
[Site "Halkidiki"]
[Date "2018.10.20"]
[Round "1"]
[White "Bania, Eleni"]
[Black "Nestorovic, Katarina"]
[Result "0-1"]
[ECO "B22"]
[WhiteElo "1454"]
[BlackElo "2015"]
[Annotator "NA"]
[PlyCount "94"]
[EventDate "2018.10.20"]
[EventType "swiss"]
[EventCountry "GRE"]
[SourceTitle "playchess.com"]
[Source "ChessBase"]
[SourceQuality "1"]
[TimeControl "40/5400+30:1800+30"]

1. e4 {[%emt 0:00:00]} c5 {[%emt 0:00:00]} 2. c3 {[%emt 0:00:00]} Nf6 {[%emt 0:00:03]} 3. e5 {[%emt 0:00:00]} Nd5 {[%emt 0:00:08]} 4. d4 {[%emt 0:00:00]} cxd4 {[%emt 0:00:10]} 5. Nf3 {[%emt 0:01:07]} e6 {[%emt 0:00:37]} 6. cxd4 {[%emt 0:00:28]} d6 {[%emt 0:00:16]} 7. Bc4 {[%emt 0:00:34]} Nc6 {[%emt 0:00:15]} 8. O-O {[%emt 0:00:17]} Be7 {[%emt 0:01:17]} 9. Qe2 {[%emt 0:01:01]} O-O {[%emt 0:00:49]} 10. Nc3 {[%emt 0:00:18]} Nxc3 {[%emt 0:01:54]} 11. bxc3 {[%emt 0:00:12]} Qa5 {[%emt 0:08:14]} 12. Bd2 {[%emt 0:10:11]} Rd8 {[%emt 0:19:51]} 13. Rfe1 {[%emt 0:04:52]} Bd7 {[%emt 0:10:06]} 14. Bb3 {[%emt 0:18:23]} dxe5 {[%emt 0:07:45]} 15. dxe5 {[%emt 0:01:01]} Rac8 {[%emt 0:06:32]} 16. Rac1 {[%emt 0:07:22]} Ba3 {[%emt 0:07:21]} 17. Rb1 {[%emt 0:03:24]} Ne7 {[%emt 0:14:04]} 18. Bc2 {[%emt 0:10:28]} Ng6 {[%emt 0:01:33]} 19. Bg5 {[%emt 0:16:37]} Rf8 {[%emt 0:02:27]} 20. Bd2 {[%emt 0:13:59]} Qc7 {[%emt 0:05:07]} 21. h4 {[%emt 0:03:58]} Bc6 {[%emt 0:04:16]} 22. Be4 {[%emt 0:02:36]} h6 {[%emt 0:04:09]} 23. h5 {[%emt 0:02:58]} Ne7 {[%emt 0:00:17]} 24. Nd4 {[%emt 0:00:09]} Bc5 {[%emt 0:03:46]} 25. Qg4 {[%emt 0:01:42]} Bxe4 {[%emt 0:00:57]} 26. Rxe4 {[%emt 0:00:41]} Bxd4 {[%emt 0:00:27]} 27. Rxd4 {[%emt 0:00:35]} Kh8 {[%emt 0:00:34]} 28. Re1 {[%emt 0:00:27]} Nf5 {[%emt 0:00:17]} 29. Rb4 {[%emt 0:00:29]} Rfd8 {[%emt 0:00:15]} 30. Qe2 {[%emt 0:00:21]} Qc6 {[%emt 0:00:36]} 31. Rd1 {[%emt 0:00:35]} b6 {[%emt 0:00:18]} 32. Qg4 {[%emt 0:00:36]} Qd5 {[%emt 0:00:34]} 33. Qe2 {[%emt 0:00:34]} Qxa2 {[%emt 0:00:58]} 34. Qe1 {[%emt 0:00:23]} Qd5 {[%emt 0:00:23]} 35. Rbb1 {[%emt 0:00:34]} Qc6 {[%emt 0:00:31]} 36. Rbc1 {[%emt 0:00:25]} a5 {[%emt 0:00:26]} 37. f3 {[%emt 0:00:40]} Qc5+ {[%emt 0:00:14]} 38. Kh1 {[%emt 0:00:03]} Qc4 {[%emt 0:00:50]} 39. g4 {[%emt 0:00:19]} Ne7 {[%emt 0:00:30]} 40. Qg3 {[%emt 0:00:00]} Rd3 {[%emt 0:00:00]} 41. Rc2 {[%emt 0:03:27]} Qd5 {[%emt 0:01:24]} 42. Kg2 {[%emt 0:01:43]} b5 {[%emt 0:00:36]} 43. Qf4 {[%emt 0:01:24]} Nc6 {[%emt 0:02:37]} 44. Re1 {[%emt 0:12:00]} Nd4 {[%emt 0:02:22]} 45. cxd4 {[%emt 0:03:29]} Rxc2 {[%emt 0:00:10]} 46. Re2 {[%emt 0:00:26]} Rxd4 {[%emt 0:03:05]} 47. Qxf7 {[%emt 0:00:19]} Qd7 {[%emt 0:00:51]} 0-1

[Event "WYCC 2018 G16"]
[Site "Halkidiki"]
[Date "2018.10.20"]
[Round "1"]
[White "Mairambekova, Aiperi"]
[Black "Duson, Robin"]
[Result "0-1"]
[ECO "B47"]
[WhiteElo "1398"]
[BlackElo "1999"]
[Annotator "NA"]
[PlyCount "56"]
[EventDate "2018.10.20"]
[EventType "swiss"]
[EventCountry "GRE"]
[SourceTitle "playchess.com"]
[Source "ChessBase"]
[SourceQuality "1"]
[TimeControl "40/5400+30:1800+30"]

1. e4 {[%emt 0:00:00]} c5 {[%emt 0:00:00]} 2. Nf3 {[%emt 0:00:00]} e6 {[%emt 0:00:04]} 3. d4 {[%emt 0:00:00]} cxd4 {[%emt 0:00:08]} 4. Nxd4 {[%emt 0:00:00]} Nc6 {[%emt 0:00:17]} 5. Nc3 {[%emt 0:00:11]} Qc7 {[%emt 0:00:27]} 6. a3 {[%emt 0:01:11]} a6 {[%emt 0:00:32]} 7. Be3 {[%emt 0:01:27]} Nf6 {[%emt 0:01:01]} 8. Be2 {[%emt 0:01:16]} b5 {[%emt 0:01:57]} 9. Bf3 {[%emt 0:05:29]} Ne5 {[%emt 0:06:01]} 10. O-O {[%emt 0:06:03]} Bb7 {[%emt 0:03:15]} 11. Bg5 {[%emt 0:13:46]} Be7 {[%emt 0:05:31]} 12. Re1 {[%emt 0:11:21]} Rc8 {[%emt 0:04:39]} 13. Rc1 {[%emt 0:20:20]} Nc4 {[%emt 0:08:50]} 14. Rb1 {[%emt 0:10:27]} Nxa3 {[%emt 0:09:53]} 15. bxa3 {[%emt 0:07:00]} Qxc3 {[%emt 0:00:19]} 16. Rb3 {[%emt 0:00:31]} Qc7 {[%emt 0:06:03]} 17. e5 {[%emt 0:02:55]} Nd5 {[%emt 0:02:25]} 18. Bxd5 {[%emt 0:00:12]} Bxg5 {[%emt 0:09:06]} 19. Bxb7 {[%emt 0:00:16]} Qxb7 {[%emt 0:00:06]} 20. Qg4 {[%emt 0:00:42]} Bh6 {[%emt 0:04:02]} 21. Rd1 {[%emt 0:03:11]} O-O {[%emt 0:07:15]} 22. Rbd3 {[%emt 0:01:54]} f5 {[%emt 0:03:24]} 23. Qh5 {[%emt 0:03:15]} Qe4 {[%emt 0:02:49]} 24. Nf3 {[%emt 0:01:29]} Rxc2 {[%emt 0:06:53]} 25. Rxd7 {[%emt 0:00:12]} Qe2 {[%emt 0:01:42]} 26. Qh4 {[%emt 0:01:01]} Be3 {[%emt 0:03:38]} 27. Rf1 {[%emt 0:00:13]} Rc4 {[%emt 0:05:13]} 28. Qe7 {[%emt 0:00:49]} Bxf2+ {[%emt 0:00:15]} 0-1

[Event "WYCC 2018 G16"]
[Site "Halkidiki"]
[Date "2018.10.21"]
[Round "2"]
[White "Solozhenkina, Elizaveta"]
[Black "Urh, Zala"]
[Result "1-0"]
[ECO "A06"]
[WhiteElo "2276"]
[BlackElo "2066"]
[Annotator "ChessBase"]
[PlyCount "111"]
[EventDate "2018.10.20"]
[EventType "swiss"]
[EventCountry "GRE"]
[SourceTitle "playchess.com"]
[Source "ChessBase"]
[SourceQuality "1"]
[TimeControl "40/5400+30:1800+30"]

1. Nf3 {[%emt 0:00:00]} d5 {[%emt 0:00:00]} 2. g3 {[%emt 0:00:00]} c6 {[%emt 0:00:00]} 3. Bg2 {[%emt 0:00:00]} Bg4 {[%emt 0:00:20]} 4. c4 {[%emt 0:00:00]} e6 {[%emt 0:00:51]} 5. cxd5 {[%emt 0:11:20]} Bxf3 {[%emt 0:00:14]} 6. Bxf3 {[%emt 0:00:11]} cxd5 {[%emt 0:00:06]} 7. O-O {[%emt 0:01:15]} Nf6 {[%emt 0:01:57]} 8. b3 {[%emt 0:01:59]} Nc6 {[%emt 0:01:03]} 9. Bb2 {[%emt 0:00:08]} Be7 {[%emt 0:00:52]} 10. Nc3 {[%emt 0:02:01]} O-O {[%emt 0:01:11]} 11. d3 {[%emt 0:02:49]} Rc8 {[%emt 0:02:22]} 12. Rc1 {[%emt 0:01:10]} Nd7 {[%emt 0:03:42]} 13. Bg2 {[%emt 0:03:14]} Bf6 {[%emt 0:04:19]} 14. Qd2 {[%emt 0:03:49]} Qa5 {[%emt 0:10:13]} 15. Rfd1 {[%emt 0:12:49]} Rfd8 {[%emt 0:01:43]} 16. e3 {[%emt 0:03:21]} b5 {[%emt 0:06:06]} 17. d4 {[%emt 0:09:54]} a6 {[%emt 0:11:46]} 18. Bf1 {[%emt 0:07:47]} Be7 {[%emt 0:02:53]} 19. a4 {[%emt 0:06:28]} b4 {[%emt 0:07:14]} 20. Nb1 {[%emt 0:03:41]} Nf6 {[%emt 0:06:33]} 21. Qd3 {[%emt 0:01:49]} Nb8 {[%emt 0:00:33]} 22. Nd2 {[%emt 0:00:27]} Qb6 {[%emt 0:01:24]} 23. Rc2 {[%emt 0:01:48]} Qb7 {[%emt 0:08:15]} 24. Rdc1 {[%emt 0:01:06]} Ne8 {[%emt 0:07:19]} 25. Rxc8 {[%emt 0:03:51]} Rxc8 {[%emt 0:00:06]} 26. Rxc8 {[%emt 0:00:54]} Qxc8 {[%emt 0:00:05]} 27. e4 {[%emt 0:00:17]} dxe4 {[%emt 0:05:22]} 28. Nxe4 {[%emt 0:01:08]} Nf6 {[%emt 0:00:22]} 29. Nc5 {[%emt 0:08:20]} Bxc5 {[%emt 0:01:20]} 30. dxc5 {[%emt 0:00:02]} Qxc5 {[%emt 0:00:58]} 31. Qd8+ {[%emt 0:01:51]} Qf8 {[%emt 0:00:06]} 32. Bxf6 {[%emt 0:04:18]} gxf6 {[%emt 0:00:07]} 33. Qxf6 {[%emt 0:00:03]} Qd6 {[%emt 0:01:30]} 34. Qf3 {[%emt 0:00:56]} Kg7 {[%emt 0:05:46]} 35. Qb7 {[%emt 0:01:41]} Kf6 {[%emt 0:01:31]} 36. h4 {[%emt 0:02:00]} Kg7 {[%emt 0:01:54]} 37. h5 {[%emt 0:01:43]} h6 {[%emt 0:01:11]} 38. Bc4 {[%emt 0:00:43]} Kf6 {[%emt 0:02:54]} 39. Qf3+ {[%emt 0:02:00]} Kg7 {[%emt 0:01:15]} 40. Qb7 {[%emt 0:00:00]} Kf6 {[%emt 0:00:00]} 41. Qf3+ {[%emt 0:11:38]} Kg7 {[%emt 0:01:24]} 42. Qe2 {[%emt 0:00:42]} a5 {[%emt 0:07:26]} 43. Qb2+ {[%emt 0:07:57]} e5 {[%emt 0:05:42]} 44. Qe2 {[%emt 0:03:16]} Nd7 {[%emt 0:07:03]} 45. Qg4+ {[%emt 0:00:29]} Kf8 {[%emt 0:00:06]} 46. Qf3 {[%emt 0:00:31]} Nf6 {[%emt 0:01:21]} 47. Qa8+ {[%emt 0:00:50]} Kg7 {[%emt 0:00:53]} 48. Qa7 {[%emt 0:03:41]} Qd1+ {[%emt 0:02:19]} 49. Kg2 {[%emt 0:00:04]} Qxh5 {[%emt 0:00:06]} 50. Qxa5 {[%emt 0:01:22]} Ng4 {[%emt 0:11:00]} 51. Qa7 {[%emt 0:00:29]} Qh2+ {[%emt 0:02:07]} 52. Kf3 {[%emt 0:01:20]} Qh1+ {[%emt 0:00:33]} 53. Kxg4 {[%emt 0:01:07]} Qe4+ {[%emt 0:00:24]} 54. f4 {[%emt 0:00:17]} Qg6+ {[%emt 0:00:32]} 55. Kf3 {[%emt 0:01:24]} Qh5+ {[%emt 0:00:38]} 56. Kg2 {[%emt 0:00:09]} 1-0